fUST/lending_fUST_20240524
["ID","MTS","AMOUNT","RATE_DAILY","PERIOD"]
[327808652,1716497438942,-1183.89,0.00024657,2]
[327808654,1716497438955,-500.11593174,0.00024657,2]
[327808656,1716497438964,-500.0,0.00024657,2]
[327808658,1716497438973,-500.0,0.00024657,2]
[327808660,1716497438982,-500.0,0.00024657,2]
[327808662,1716497438992,-1068.05,0.00024657,2]
[327808663,1716497439004,-500.0,0.00024657,2]
[327808665,1716497439014,-500.0,0.00024657,2]
[327808668,1716497439029,-548.90533498,0.00024657,2]
[327808670,1716497439039,-950.39,0.00024657,2]
[327808671,1716497439049,-908.68,0.00024657,2]
[327808672,1716497439059,-500.0,0.00024657,2]
[327808673,1716497439069,-500.0,0.00024657,2]
[327808674,1716497439079,-764.87,0.00024657,2]
[327808675,1716497439088,-500.0,0.00024657,2]
[327808676,1716497439098,-500.0,0.00024657,2]
[327808677,1716497439109,-2167.4,0.00024657,2]
[327808678,1716497439126,-500.0,0.00024657,2]
[327808679,1716497439137,-803.96,0.00024657,2]
[327808680,1716497439147,-500.0,0.00024657,2]
[327808681,1716497439156,-337.19,0.00024657,2]
[327808682,1716497439166,-500.0,0.00024657,2]
[327808683,1716497439176,-592.08,0.00024657,2]
[327808684,1716497439186,-500.0,0.00024657,2]
[327808685,1716497439195,-573.32,0.00024657,2]
[327808686,1716497439205,-500.0,0.00024657,2]
[327808687,1716497439215,-181.26753596,0.00024657,2]
[327808688,1716497439224,-2065.54,0.00024657,2]
[327808689,1716497439234,-500.0,0.00024657,2]
[327808690,1716497439244,-500.0,0.00024657,2]
[327808691,1716497439257,-500.0,0.00024657,2]
[327808692,1716497439267,-2772.05,0.00024657,2]
[327808693,1716497439276,-500.0,0.00024657,2]
[327808694,1716497439286,-500.0,0.00024657,2]
[327808695,1716497439296,-2071.17,0.00024657,2]
[327808696,1716497439305,-500.0,0.00024657,2]
[327808697,1716497439315,-1322.01,0.00024657,2]
[327808698,1716497439324,-500.0,0.00024657,2]
[327808699,1716497439334,-500.0,0.00024657,2]
[327808700,1716497439344,-500.0,0.00024657,2]
[327808701,1716497439354,-773.7,0.00024657,2]
[327808702,1716497439363,-2163.1,0.00024657,2]
[327808703,1716497439373,-500.0,0.00024657,2]
[327808704,1716497439383,-500.0,0.00024657,2]
[327808705,1716497439392,-500.0,0.00024657,2]
[327808706,1716497439402,-2611.58,0.00024657,2]
[327808707,1716497439411,-500.0,0.00024657,2]
[327808708,1716497439421,-500.0,0.00024657,2]
[327808709,1716497439430,-3000.0,0.00024657,2]
[327808710,1716497439440,-521.17383233,0.00024657,2]
[327808711,1716497439449,-500.0,0.00024657,2]
[327808712,1716497439458,-500.0,0.00024657,2]
[327808713,1716497439467,-500.0,0.00024657,2]
[327808714,1716497439476,-2331.93,0.00024657,2]
[327808715,1716497439486,-3377.28,0.00024657,2]
[327808716,1716497439496,-500.0,0.00024657,2]
[327808717,1716497439509,-1249.11,0.00024657,2]
[327808718,1716497439518,-500.0,0.00024657,2]
[327808719,1716497439527,-500.0,0.00024657,2]
[327808720,1716497439536,-1095.0,0.00024657,2]
[327808721,1716497439545,-562.03,0.00024657,2]
[327808722,1716497439556,-4326.45,0.00024657,2]
[327808723,1716497439565,-907.39,0.00024657,2]
[327808724,1716497439575,-500.0,0.00024657,2]
[327808725,1716497439584,-1253.42,0.00024657,2]
[327808726,1716497439593,-1686.23,0.00024657,2]
[327808727,1716497439602,-1569.76,0.00024657,2]
[327808728,1716497439612,-598.82,0.00024657,2]
[327808729,1716497439622,-859.59,0.00024657,2]
[327808730,1716497439631,-514.91,0.00024657,2]
[327808731,1716497439640,-500.0,0.00024657,2]
[327808732,1716497439650,-4132.0598494,0.00024657,2]
[327808733,1716497439776,-3563.0401506,0.00024657,2]
[327808734,1716497439785,-500.0,0.00024657,2]
[327808735,1716497439796,-500.0,0.00024657,2]
[327808736,1716497439806,-500.0,0.00024657,2]
[327808737,1716497439815,-500.0,0.00024657,2]
[327808738,1716497439824,-210.3726132,0.00024657,2]
[327808739,1716497439834,-500.0,0.00024657,2]
[327808740,1716497439844,-500.0,0.00024657,2]
[327808741,1716497439854,-4753.95,0.00024657,2]
[327808742,1716497439863,-500.0,0.00024657,2]
[327808743,1716497439872,-2670.62,0.00024657,2]
[327808744,1716497439882,-500.0,0.00024657,2]
[327808745,1716497439891,-1010.33,0.00024657,2]
[327808746,1716497439901,-500.0,0.00024657,2]
[327808747,1716497439910,-2650.17,0.00024657,2]
[327808748,1716497439919,-500.0,0.00024657,2]
[327808749,1716497439928,-500.0,0.00024657,2]
[327808750,1716497439939,-524.41,0.00024657,2]
[327808751,1716497439953,-700.91,0.00024657,2]
[327808752,1716497439962,-1576.28,0.00024657,2]
[327808753,1716497439972,-5540.74,0.00024657,2]
[327808754,1716497439982,-1691.49,0.00024657,2]
[327808755,1716497439992,-2933.36,0.00024657,2]
[327808756,1716497440004,-2306.58,0.00024657,2]
[327808757,1716497440014,-500.0,0.00024657,2]
[327808758,1716497440025,-500.0,0.00024657,2]
[327808759,1716497440035,-817.41,0.00024657,2]
[327808760,1716497440044,-500.0,0.00024657,2]
[327808761,1716497440054,-500.0,0.00024657,2]
[327808762,1716497440063,-500.0,0.00024657,2]
[327808763,1716497440073,-1064.68,0.00024657,2]
[327808764,1716497440082,-2330.21,0.00024657,2]
[327808765,1716497440092,-500.0,0.00024657,2]
[327808766,1716497440101,-500.0,0.00024657,2]
[327808767,1716497440111,-500.0,0.00024657,2]
[327808768,1716497440120,-500.0,0.00024657,2]
[327808769,1716497440130,-994.04,0.00024657,2]
[327808770,1716497440139,-3059.02,0.00024657,2]
[327808771,1716497440148,-6687.95,0.00024657,2]
[327808772,1716497440158,-500.0,0.00024657,2]
[327808773,1716497440168,-500.0,0.00024657,2]
[327808774,1716497440177,-500.0,0.00024657,2]
[327808775,1716497440187,-587.6,0.00024657,2]
[327808776,1716497440196,-279.65343433,0.00024657,2]
[327808777,1716497440205,-500.0,0.00024657,2]
[327808778,1716497440216,-500.0,0.00024657,2]
[327808779,1716497440225,-588.24,0.00024657,2]
[327808780,1716497440235,-509.78,0.00024657,2]
[327808781,1716497440244,-2470.96,0.00024657,2]
[327808782,1716497440256,-500.0,0.00024657,2]
[327808783,1716497440265,-469.97185424,0.00024657,2]
[327808784,1716497440275,-16223.03,0.00024657,2]
[327808785,1716497440284,-500.0,0.00024657,2]
[327808786,1716497440293,-500.0,0.00024657,2]
[327808787,1716497440302,-895.62,0.00024657,2]
[327808788,1716497440311,-786.54,0.00024657,2]
[327808789,1716497440321,-500.0,0.00024657,2]
[327808790,1716497440330,-4771.08,0.00024657,2]
[327808791,1716497440339,-500.0,0.00024657,2]
[327808792,1716497440348,-500.0,0.00024657,2]
[327808793,1716497440357,-1205.08,0.00024657,2]
[327808794,1716497440368,-440.67845645,0.00024657,2]
[327808911,1716497446353,-59.32154355,0.00024657,2]
[327808913,1716497446362,-2041.02,0.00024657,2]
[327808914,1716497446371,-500.0,0.00024657,2]
[327808916,1716497446380,-2571.87,0.00024657,2]
[327808918,1716497446390,-500.0,0.00024657,2]
[327808920,1716497446399,-500.0,0.00024657,2]
[327808922,1716497446408,-803.09,0.00024657,2]
[327808923,1716497446417,-500.0,0.00024657,2]
[327808924,1716497446426,-2579.82,0.00024657,2]
[327808941,1716497446566,-17729.85,0.00024657,2]
[327808943,1716497446576,-1150.36,0.00024657,2]
[327808945,1716497446586,-500.0,0.00024657,2]
[327808947,1716497446595,-500.0,0.00024657,2]
[327808949,1716497446604,-612.85,0.00024657,2]
[327808951,1716497446613,-8630.83,0.00024657,2]
[327808953,1716497446623,-1054.15565729,0.00024657,2]
[327809029,1716497498194,175.6616625,0.00020913,2]
[327809041,1716498208494,150.95471359,0.00024223,30]
[327809042,1716498208555,150.95471359,0.00023739,120]
[327809054,1716498442146,-702.29749261,0.00020913,2]
[327809056,1716498499700,150.95471359,0.0002483,30]
[327809057,1716498499732,150.95471359,0.00024334,120]
[327809061,1716498547143,-1143.36406491,0.00019595,2]
[327809062,1716498547164,-449.54262902,0.00020913,2]
[327809063,1716498547185,-299.60682001,0.00020913,2]
[327809064,1716498547206,-3632.73611165,0.00020913,2]
[327809065,1716498547228,-166.666666,0.00021918,2]
[327809066,1716498547248,-25684.44242429,0.00022,2]
[327809067,1716498552127,-1760.98292333,0.00022,2]
[327809068,1716498556195,-166.666666,0.00022431,2]
[327809078,1716498610871,3632.73611165,0.00022431,2]
[327809079,1716498614792,1143.36406491,0.00021018,2]
[327809080,1716498619591,154.95351395,0.00022431,2]
[327809081,1716498626870,3632.73611165,0.00022431,2]
[327809082,1716498630775,371.19832465,0.00021018,2]
[327809140,1716498635594,154.95351395,0.00022431,2]
[327809163,1716498640088,-231.56824185,0.0002273,2]
[327809164,1716498640097,-158.691562,0.00022861,2]
[327809165,1716498640107,-166.666666,0.00022944,2]
[327809166,1716498640116,-13068.07353016,0.00022945,2]
[327809179,1716498642906,-3975.76477612,0.00022945,2]
[327809181,1716498642978,-1281.10807788,0.00022945,2]
[327809347,1716498645440,-6575.05361584,0.00022945,2]
[327809349,1716498645450,-341.87971052,0.00023356,2]
[327809351,1716498645459,-166.666666,0.00023456,2]
[327809353,1716498645469,-153.0,0.00023675,2]
[327809355,1716498645479,-153.0,0.00023675,2]
[327809358,1716498645489,-285.92791132,0.00023739,2]
[327809361,1716498645499,-843.08196539,0.00023739,2]
[327809364,1716498645508,-153.0,0.00023878,2]
[327809367,1716498645520,-166.666666,0.00023969,2]
[327809370,1716498645531,-169.7973437,0.00023978,2]
[327809373,1716498645542,-299.60682001,0.00024334,2]
[327809376,1716498645552,-163.89812,0.00024384,2]
[327809378,1716498645562,-528.29472,0.00024384,2]
[327809380,1716498645572,-4225.76789331,0.0002446,2]
[327809382,1716498645583,-166.666666,0.00024482,2]
[327809384,1716498645592,-291.561811,0.00024496,2]
[327809386,1716498645603,-291.561811,0.00024496,2]
[327809388,1716498645613,-153.0,0.00024496,2]
[327809390,1716498645623,-153.0,0.00024496,2]
[327809392,1716498645633,-153.0,0.00024496,2]
[327809393,1716498645643,-153.0,0.00024496,2]
[327809395,1716498645652,-153.0,0.00024496,2]
[327809397,1716498645663,-153.0,0.00024496,2]
[327809399,1716498645679,-153.0,0.00024496,2]
[327809401,1716498645690,-153.0,0.00024496,2]
[327809403,1716498645700,-153.0,0.00024496,2]
[327809406,1716498645712,-153.0,0.00024496,2]
[327809408,1716498645723,-153.0,0.00024496,2]
[327809410,1716498645734,-153.0,0.00024496,2]
[327809411,1716498645744,-153.0,0.00024496,2]
[327809414,1716498645756,-153.0,0.00024496,2]
[327809416,1716498645766,-153.0,0.00024496,2]
[327809418,1716498645776,-153.0,0.00024496,2]
[327809419,1716498645786,-153.0,0.00024496,2]
[327809421,1716498645796,-153.0,0.00024496,2]
[327809423,1716498645805,-417.48839794,0.00024515,2]
[327809425,1716498645815,-237.01188231,0.00024555,2]
[327809428,1716498645826,-237.01188231,0.00024556,2]
[327809430,1716498645836,-550.9904196,0.00024653,2]
[327809432,1716498645845,-2031.9,0.00024654,2]
[327809434,1716498645854,-500.0,0.00024654,2]
[327809436,1716498645864,-500.0,0.00024654,2]
[327809438,1716498645875,-500.0,0.00024654,2]
[327809440,1716498645885,-500.0,0.00024654,2]
[327809442,1716498645896,-500.0,0.00024654,2]
[327809444,1716498645905,-623.80713256,0.00024654,2]
[327809446,1716498645915,-500.0,0.00024654,2]
[327809448,1716498645928,-200.0,0.00024654,2]
[327809451,1716498645939,-200.0,0.00024654,2]
[327809454,1716498645950,-500.0,0.00024654,2]
[327809458,1716498645960,-192.83110792,0.00024654,2]
[327809460,1716498645972,-231.39932742,0.00024654,2]
[327809462,1716498645982,-500.0,0.00024654,2]
[327809464,1716498645993,-500.0,0.00024654,2]
[327809466,1716498646003,-500.0,0.00024654,2]
[327809468,1716498646012,-500.0,0.00024654,2]
[327809470,1716498646022,-499.99999999,0.00024654,2]
[327809472,1716498646032,-500.0,0.00024654,2]
[327809474,1716498646042,-500.0,0.00024654,2]
[327809476,1716498646052,-500.0,0.00024654,2]
[327809478,1716498646061,-298.00206656,0.00024654,2]
[327809480,1716498646070,-15120.70113182,0.00024655,11]
[327809482,1716498646080,-1978.57825249,0.00024655,2]
[327809484,1716498646089,-9403.91722042,0.00024655,2]
[327809486,1716498646098,-34956.68450139,0.00024655,2]
[327809488,1716498646107,-24437.06638613,0.00024657,11]
[327809489,1716498646117,-500.0,0.00024657,2]
[327809491,1716498646126,-500.0,0.00024657,2]
[327809493,1716498646135,-500.0,0.00024657,2]
[327809496,1716498646147,-649.07274611,0.00024657,2]
[327809497,1716498646156,-500.0,0.00024657,2]
[327809499,1716498646170,-577.56,0.00024657,2]
[327809502,1716498646180,-500.0,0.00024657,2]
[327809504,1716498646190,-554.60685804,0.00024657,2]
[327809506,1716498646199,-630.65725454,0.00024657,2]
[327809508,1716498646208,-500.0,0.00024657,2]
[327809509,1716498646217,-500.0,0.00024657,2]
[327809512,1716498646227,-500.0,0.00024657,2]
[327809513,1716498646236,-500.0,0.00024657,2]
[327809515,1716498646246,-500.0,0.00024657,2]
[327809517,1716498646256,-500.0,0.00024657,2]
[327809519,1716498646265,-500.0,0.00024657,2]
[327809521,1716498646275,-500.0,0.00024657,2]
[327809523,1716498646284,-500.0,0.00024657,2]
[327809525,1716498646294,-500.0,0.00024657,2]
[327809527,1716498646303,-587.27,0.00024657,2]
[327809529,1716498646312,-500.0,0.00024657,2]
[327809531,1716498646322,-500.0,0.00024657,2]
[327809533,1716498646332,-346.77,0.00024657,2]
[327809535,1716498646341,-910.79,0.00024657,2]
[327809537,1716498646351,-500.0,0.00024657,2]
[327809539,1716498646362,-500.0,0.00024657,2]
[327809541,1716498646373,-500.0,0.00024657,2]
[327809545,1716498646382,-500.0,0.00024657,2]
[327809549,1716498646392,-500.0,0.00024657,2]
[327809552,1716498646401,-500.0,0.00024657,2]
[327809555,1716498646411,-500.0,0.00024657,2]
[327809557,1716498646424,-500.0,0.00024657,2]
[327809560,1716498646433,-500.0,0.00024657,2]
[327809563,1716498646445,-500.0,0.00024657,2]
[327809566,1716498646454,-1671.28,0.00024657,2]
[327809569,1716498646463,-573.5,0.00024657,2]
[327809572,1716498646473,-534.68,0.00024657,2]
[327809575,1716498646482,-500.0,0.00024657,2]
[327809578,1716498646491,-1006.05891986,0.00024657,2]
[327809581,1716498646501,-153.11676968,0.00024657,2]
[327809584,1716498646510,-500.0,0.00024657,2]
[327809587,1716498646520,-913.49,0.00024657,2]
[327809591,1716498646529,-500.0,0.00024657,2]
[327809593,1716498646539,-500.0,0.00024657,2]
[327809596,1716498646549,-500.0,0.00024657,2]
[327809599,1716498646559,-1235.83,0.00024657,2]
[327809602,1716498646568,-1049.38,0.00024657,2]
[327809605,1716498646578,-1370.6,0.00024657,2]
[327809608,1716498646587,-500.0,0.00024657,2]
[327809612,1716498646597,-500.0,0.00024657,2]
[327809614,1716498646607,-500.0,0.00024657,2]
[327809618,1716498646616,-990.88,0.00024657,2]
[327809621,1716498646626,-500.0,0.00024657,2]
[327809623,1716498646635,-708.21,0.00024657,2]
[327809626,1716498646644,-500.0,0.00024657,2]
[327809629,1716498646655,-500.0,0.00024657,2]
[327809633,1716498646664,-500.0,0.00024657,2]
[327809635,1716498646677,-1705.69,0.00024657,2]
[327809637,1716498646687,-500.0,0.00024657,2]
[327809639,1716498646696,-559.06,0.00024657,2]
[327809642,1716498646706,-1134.56,0.00024657,2]
[327809643,1716498646715,-500.0,0.00024657,2]
[327809645,1716498646724,-1510.6,0.00024657,2]
[327809647,1716498646734,-500.0,0.00024657,2]
[327809649,1716498646743,-500.0,0.00024657,2]
[327809651,1716498646753,-500.0,0.00024657,2]
[327809654,1716498646763,-628.12460585,0.00024657,2]
[327809656,1716498646772,-500.0,0.00024657,2]
[327809658,1716498646782,-500.0,0.00024657,2]
[327809660,1716498646791,-870.82,0.00024657,2]
[327809662,1716498646800,-500.0,0.00024657,2]
[327809663,1716498646810,-733.0,0.00024657,2]
[327809665,1716498646819,-500.0,0.00024657,2]
[327809667,1716498646829,-500.0,0.00024657,2]
[327809669,1716498646839,-1101.52,0.00024657,2]
[327809672,1716498646848,-2077.09,0.00024657,2]
[327809673,1716498646858,-558.40680148,0.00024657,2]
[327809675,1716498646867,-500.0,0.00024657,2]
[327809677,1716498646877,-500.0,0.00024657,2]
[327809679,1716498646886,-567.41,0.00024657,2]
[327809681,1716498646895,-500.0,0.00024657,2]
[327809683,1716498646904,-952.62,0.00024657,2]
[327809685,1716498646913,-500.0,0.00024657,2]
[327809687,1716498646927,-500.0,0.00024657,2]
[327809690,1716498646936,-241.30867942,0.00024657,2]
[327809692,1716498646946,-1266.92,0.00024657,2]
[327809694,1716498646957,-500.0,0.00024657,2]
[327809695,1716498646966,-2656.55,0.00024657,2]
[327809698,1716498646976,-1984.87,0.00024657,2]
[327809700,1716498646986,-2072.97,0.00024657,2]
[327809701,1716498646995,-500.0,0.00024657,2]
[327809703,1716498647005,-789.92,0.00024657,2]
[327809706,1716498647015,-500.0,0.00024657,2]
[327809708,1716498647025,-500.0,0.00024657,2]
[327809710,1716498647035,-500.0,0.00024657,2]
[327809712,1716498647044,-500.0,0.00024657,2]
[327809714,1716498647054,-500.0,0.00024657,2]
[327809716,1716498647065,-500.0,0.00024657,2]
[327809718,1716498647075,-500.0,0.00024657,2]
[327809719,1716498647085,-500.0,0.00024657,2]
[327809721,1716498647095,-2502.77,0.00024657,2]
[327809723,1716498647105,-2007.39,0.00024657,2]
[327809725,1716498647115,-2234.77,0.00024657,2]
[327809727,1716498647124,-621.97103725,0.00024657,2]
[327809730,1716498647134,-590.79274333,0.00024657,2]
[327809732,1716498647144,-555.49,0.00024657,2]
[327809734,1716498647154,-3332.89,0.00024657,2]
[327809736,1716498647165,-500.0,0.00024657,2]
[327809737,1716498647184,-1197.07,0.00024657,2]
[327809739,1716498647194,-500.0,0.00024657,2]
[327809741,1716498647204,-500.0,0.00024657,2]
[327809743,1716498647214,-500.0,0.00024657,2]
[327809745,1716498647225,-864.24,0.00024657,2]
[327809747,1716498647236,-869.58,0.00024657,2]
[327809750,1716498647247,-500.0,0.00024657,2]
[327809752,1716498647258,-538.37,0.00024657,2]
[327809753,1716498647270,-1504.35,0.00024657,2]
[327809756,1716498647281,-1837.62757061,0.00024657,2]
[327809758,1716498647293,-4146.19,0.00024657,2]
[327809760,1716498647304,-564.56,0.00024657,2]
[327809762,1716498647314,-500.0,0.00024657,2]
[327809763,1716498647331,-500.0,0.00024657,2]
[327809765,1716498647342,-1201.2,0.00024657,2]
[327809767,1716498647353,-500.0,0.00024657,2]
[327809769,1716498647364,-284.92107643,0.00024657,2]
[327809771,1716498647378,-7374.47,0.00024657,2]
[327809773,1716498647389,-500.0,0.00024657,2]
[327809775,1716498647399,-1615.97,0.00024657,2]
[327809777,1716498647410,-500.0,0.00024657,2]
[327809779,1716498647435,-651.22,0.00024657,2]
[327809781,1716498647445,-2559.34,0.00024657,2]
[327809783,1716498647457,-500.0,0.00024657,2]
[327809785,1716498647468,-4555.87,0.00024657,2]
[327809787,1716498647479,-500.0,0.00024657,2]
[327809789,1716498647490,-500.0,0.00024657,2]
[327809791,1716498647500,-500.0,0.00024657,2]
[327809793,1716498647510,-823.77,0.00024657,2]
[327809795,1716498647521,-500.0,0.00024657,2]
[327809797,1716498647530,-5309.87,0.00024657,2]
[327809799,1716498647540,-590.26013906,0.00024657,2]
[327809801,1716498647550,-671.71,0.00024657,2]
[327809803,1716498647560,-500.0,0.00024657,2]
[327809805,1716498647570,-1621.02,0.00024657,2]
[327809807,1716498647579,-502.56,0.00024657,2]
[327809809,1716498647589,-500.0,0.00024657,2]
[327809811,1716498647599,-500.0,0.00024657,2]
[327809813,1716498647609,-2539.75,0.00024657,2]
[327809815,1716498647619,-500.0,0.00024657,2]
[327809817,1716498647628,-2210.47,0.00024657,2]
[327809819,1716498647638,-968.23,0.00024657,2]
[327809821,1716498647648,-783.35,0.00024657,2]
[327809823,1716498647657,-500.0,0.00024657,2]
[327809825,1716498647667,-2811.14,0.00024657,2]
[327809827,1716498647677,-500.0,0.00024657,2]
[327809829,1716498647687,-500.0,0.00024657,2]
[327809831,1716498647697,-500.0,0.00024657,2]
[327809833,1716498647706,-1020.31,0.00024657,2]
[327809835,1716498647716,-6409.29,0.00024657,2]
[327809837,1716498647726,-500.0,0.00024657,2]
[327809839,1716498647736,-500.0,0.00024657,2]
[327809841,1716498647747,-500.0,0.00024657,2]
[327809843,1716498647757,-500.0,0.00024657,2]
[327809845,1716498647767,-500.0,0.00024657,2]
[327809847,1716498647777,-500.0,0.00024657,2]
[327809849,1716498647787,-500.0,0.00024657,2]
[327809851,1716498647796,-500.0,0.00024657,2]
[327809853,1716498647805,-2368.01,0.00024657,2]
[327809855,1716498647815,-500.0,0.00024657,2]
[327809857,1716498647824,-2233.12,0.00024657,2]
[327809860,1716498647841,-563.12,0.00024657,2]
[327809862,1716498647856,-500.0,0.00024657,2]
[327809864,1716498647866,-15547.07,0.00024657,2]
[327809866,1716498647877,-2931.56,0.00024657,2]
[327809868,1716498647887,-500.0,0.00024657,2]
[327809870,1716498647896,-753.77,0.00024657,2]
[327809872,1716498647906,-500.0,0.00024657,2]
[327809874,1716498647922,-500.0,0.00024657,2]
[327809876,1716498647940,-4572.28,0.00024657,2]
[327809878,1716498647950,-151.0,0.00024657,2]
[327809901,1716498648158,-500.0,0.00024657,2]
[327809903,1716498648169,-151.0,0.00024657,2]
[327809905,1716498648180,-1154.86,0.00024657,2]
[327809907,1716498648190,-500.0,0.00024657,2]
[327809909,1716498648199,-599.01,0.00024657,2]
[327809911,1716498648209,-769.63,0.00024657,2]
[327809913,1716498648219,-2464.71,0.00024657,2]
[327809915,1716498648228,-532.89,0.00024657,2]
[327809917,1716498648238,-858.31,0.00024657,2]
[327809919,1716498648248,-1102.43,0.00024657,2]
[327809921,1716498648258,-500.0,0.00024657,2]
[327809923,1716498648268,-16991.11,0.00024657,2]
[327809925,1716498648278,-1955.98,0.00024657,2]
[327809927,1716498648288,-500.0,0.00024657,2]
[327809929,1716498648297,-1690.23,0.00024657,2]
[327809931,1716498648306,-500.0,0.00024657,2]
[327809933,1716498648316,-598.96003689,0.00024657,2]
[327809935,1716498648328,-500.0,0.00024657,2]
[327809937,1716498648338,-500.0,0.00024657,2]
[327809939,1716498648347,-948.2,0.00024657,2]
[327809941,1716498648356,-2472.33,0.00024657,2]
[327809943,1716498648367,-561.0082315,0.00024657,2]
[327809945,1716498648378,-500.0,0.00024657,2]
[327809947,1716498648388,-500.0,0.00024657,2]
[327809949,1716498648397,-400.54089825,0.00024657,2]
[327809951,1716498648407,-2145.56,0.00024657,2]
[327809953,1716498648423,-151.0,0.00024657,2]
[327809954,1716498648436,-500.0,0.00024657,2]
[327809957,1716498648445,-500.0,0.00024657,2]
[327809958,1716498648454,-995.63,0.00024657,2]
[327809961,1716498648464,-568.09,0.00024657,2]
[327809963,1716498648474,-1405.54,0.00024657,2]
[327809965,1716498648484,-8271.22,0.00024657,2]
[327809967,1716498648493,-207.784917,0.00024657,2]
[327809969,1716498648503,-1024.98,0.00024657,2]
[327809971,1716498648512,-5639.59998,0.00024658,2]
[327809973,1716498648521,-687.37704263,0.00024681,2]
[327809975,1716498648531,-6922.22252347,0.000248,2]
[327809977,1716498648541,-150.0,0.00024836,2]
[327809979,1716498648551,-341.87971052,0.00024837,2]
[327809981,1716498648560,-281.0,0.000249,2]
[327809983,1716498648571,-500.0,0.00024931,3]
[327809985,1716498648581,-601.79309725,0.00024931,3]
[327809987,1716498648590,-500.0,0.00024931,3]
[327809988,1716498648600,-577.56,0.00024931,3]
[327809991,1716498648610,-500.0,0.00024931,3]
[327809993,1716498648620,-500.0,0.00024931,3]
[327809995,1716498648632,-300.84965998,0.00024931,3]
[327809997,1716498648643,-500.0,0.00024931,3]
[327809999,1716498648653,-500.0,0.00024931,3]
[327810001,1716498648662,-500.0,0.00024931,3]
[327810003,1716498648679,-500.0,0.00024931,3]
[327810005,1716498648688,-500.0,0.00024931,3]
[327810007,1716498648699,-500.0,0.00024931,3]
[327810009,1716498648708,-500.0,0.00024931,3]
[327810011,1716498648717,-500.0,0.00024931,3]
[327810013,1716498648727,-587.27,0.00024931,3]
[327810015,1716498648736,-228.72459265,0.00024931,3]
[327810017,1716498648745,-364.04766325,0.00024931,3]
[327810020,1716498648763,-135.95233675,0.00024931,3]
[327810022,1716498648773,-346.77,0.00024931,3]
[327810024,1716498648783,-910.79,0.00024931,3]
[327810026,1716498648793,-237.43295825,0.00024931,3]
[327810028,1716498649092,-237.01188231,0.00024556,2]
[327810029,1716498649103,-745.86,0.00024657,2]
[327810030,1716498649115,-500.0,0.00024657,2]
[327810031,1716498649127,-5639.59998,0.00024658,2]
[327810032,1716498649138,-262.56704175,0.00024931,3]
[327810033,1716498649150,-500.0,0.00024931,3]
[327810034,1716498649161,-500.0,0.00024931,3]
[327810036,1716498649178,-500.0,0.00024931,3]
[327810038,1716498649189,-500.0,0.00024931,3]
[327810040,1716498649200,-500.0,0.00024931,3]
[327810042,1716498649212,-500.0,0.00024931,3]
[327810044,1716498649222,-500.0,0.00024931,3]
[327810046,1716498649233,-500.0,0.00024931,3]
[327810048,1716498649244,-1671.28,0.00024931,3]
[327810050,1716498649257,-500.0,0.00024931,3]
[327810052,1716498649268,-573.5,0.00024931,3]